bitfinex-derivatives/quotes_ETHF0:USTF0_20241105
["timestamp","ask_amount","ask_price","bid_price","bid_amount"]
[1730772630479,1.36083,2415.1,2415.0,0.41434]
[1730772630680,0.9465,2415.1,2415.0,0.41434]
[1730772630881,1.36083,2415.1,2414.9,6.21076676]
[1730772631375,0.9465,2415.1,2414.9,6.21076676]
[1730772631576,0.9465,2415.1,2415.0,0.41434]
[1730772631778,0.8779,2415.4,2414.9,5.79641676]
[1730772631983,1.29219,2415.4,2415.2,0.41431]
[1730772632188,0.41431,2415.3,2414.9,5.79641676]
[1730772632377,0.41431,2415.3,2415.1,0.41432]
[1730772632779,0.41431,2415.3,2414.9,5.79641676]
[1730772633074,0.4143,2415.3,2415.1,0.41432]
[1730772634386,0.9465,2415.6,2415.2,5.79641676]
[1730772634677,0.41423,2415.7,2415.5,3.00286676]
[1730772634883,40.8,2415.7,2415.6,0.41423]
[1730772635081,40.8,2415.7,2415.5,2.58861676]
[1730772635280,40.8,2415.7,2415.6,0.41424]
[1730772635480,3.62202,2415.8,2415.6,0.41424]
[1730772635881,3.62202,2415.8,2415.5,2.58861676]
[1730772636081,0.41423,2415.7,2415.5,3.00285676]
[1730772636471,3.2078,2415.8,2415.5,2.58861676]
[1730772636672,0.41422,2415.8,2415.6,0.41423]
[1730772636877,2.2588,2415.9,2415.7,0.41422]
[1730772637079,40.8,2415.8,2415.7,0.41422]
[1730772637379,1.8446,2415.9,2415.3,4.06461676]
[1730772637578,0.41422,2415.7,2415.5,0.41424]
[1730772637775,40.8,2415.6,2415.5,0.41424]
[1730772639285,0.41426,2415.5,2415.4,0.41427]
[1730772639680,40.8,2415.6,2415.4,0.41427]
[1730772639878,41.21425,2415.6,2415.4,0.41427]
[1730772640986,0.41426,2415.5,2415.3,4.47889676]
[1730772641283,40.8,2415.6,2415.3,2.58861676]
[1730772641476,0.41427,2415.4,2415.3,2.58861676]
[1730772641985,0.41429,2415.3,2415.2,3.2078]
[1730772642683,1.8325,2415.4,2415.2,3.2078]
[1730772642684,1.8325,2415.4,2415.3,0.41429]
[1730772642876,0.9187,2415.4,2415.3,3.00290676]
[1730772643189,40.8,2415.6,2415.5,0.41426]
[1730772643484,4.1265,2415.8,2415.5,2.58861676]
[1730772643874,0.41425,2415.6,2415.4,1.8141]
[1730772644080,0.41425,2415.6,2415.4,2.22836]
[1730772644590,0.41427,2415.5,2415.3,3.00290676]
[1730772644890,0.41427,2415.4,2415.3,3.00290676]
[1730772645283,42.6722,2415.7,2415.3,2.58861676]
[1730772645484,42.6722,2415.7,2415.3,3.00289676]
[1730772645884,0.41427,2415.5,2415.3,3.00289676]
[1730772646086,0.41427,2415.4,2415.2,3.6221]
[1730772646282,42.6722,2415.7,2415.2,3.2078]
[1730772646492,1.32059,2415.3,2415.2,3.2078]
[1730772647992,0.9063,2415.3,2414.8,2.58861676]
[1730772648191,3.2078,2415.2,2414.9,1.8285]
[1730772648396,3.2078,2415.2,2415.0,0.41434]
[1730772648688,1.3206,2415.3,2415.2,0.41431]
[1730772648892,1.32059,2415.3,2415.2,0.41431]
[1730772649091,0.9063,2415.3,2415.1,2.58861676]
[1730772649493,1.3206,2415.3,2415.2,0.41431]
[1730772649684,1.3206,2415.3,2415.1,3.00293676]
[1730772649883,0.41431,2415.2,2415.1,3.00293676]
[1730772650897,1.32061,2415.3,2415.1,0.41432]
[1730772651190,0.9063,2415.3,2414.9,1.8285]
[1730772651389,0.41432,2415.2,2415.1,0.41433]
[1730772652189,0.41432,2415.2,2414.9,1.8285]
[1730772652387,0.41434,2415.1,2414.9,1.8285]
[1730772652587,0.41434,2415.0,2414.9,2.24285]
[1730772652798,0.5681,2415.2,2414.9,1.8285]
[1730772652990,0.98242,2415.2,2415.0,0.41433]
[1730772653188,3.2078,2415.1,2415.0,0.41433]
[1730772653889,0.5681,2415.2,2414.9,1.8285]
[1730772654103,3.62214,2415.1,2414.9,2.24284]
[1730772654493,3.62214,2415.1,2415.0,0.41434]
[1730772654893,3.62214,2415.1,2414.9,2.24285]
[1730772655387,0.41434,2415.0,2414.9,1.8285]
[1730772655587,0.41434,2415.0,2414.9,2.24286]
[1730772656191,3.62214,2415.1,2414.9,2.81977993]
[1730772656496,3.62214,2415.1,2415.0,0.41434]
[1730772656691,3.62214,2415.1,2414.9,1.8285]
[1730772656692,0.41434,2415.0,2414.9,2.24285]
[1730772656894,0.41434,2415.0,2414.9,2.40544442]
[1730772657092,0.41434,2415.0,2414.9,2.81980442]
[1730772657292,3.2078,2415.1,2414.9,2.40544442]
[1730772657496,3.2078,2415.1,2415.0,0.41434]
[1730772657497,3.62213,2415.1,2415.0,0.41434]
[1730772657895,3.62213,2415.1,2414.9,2.24285]
[1730772658092,3.2078,2415.1,2414.9,1.8285]
[1730772658293,3.2078,2415.1,2415.0,0.99168228]
[1730772658490,3.62213,2415.1,2415.0,0.99168228]
[1730772658896,3.2078,2415.1,2415.0,0.99168228]
[1730772659094,3.2078,2415.1,2415.0,0.41434]
[1730772659296,3.2078,2415.1,2415.0,0.98763652]
[1730772659497,0.41431,2415.2,2415.0,0.57329652]
[1730772659701,0.41434,2415.1,2414.9,2.24285]
[1730772660198,3.2078,2415.4,2415.0,0.57369897]
[1730772660393,0.41434,2415.1,2415.0,0.41434]
[1730772660595,0.41434,2415.1,2415.0,0.98806333]
[1730772660794,0.41434,2415.1,2415.0,0.57372333]
[1730772661101,0.41434,2415.0,2414.9,2.24285]
[1730772661298,3.2078,2415.4,2415.0,0.41433]
[1730772661499,0.41432,2415.2,2415.0,0.41433]
[1730772661701,3.2078,2415.4,2415.0,0.41433]
[1730772661702,0.41433,2415.1,2415.0,0.41433]
[1730772661998,0.41433,2415.1,2415.0,0.5738714]
[1730772662198,0.41433,2415.1,2415.0,0.9882114]
[1730772662500,0.41433,2415.1,2415.0,0.5738714]
[1730772662697,7.76293,2415.1,2415.0,0.5738714]
[1730772662892,0.41445,2414.4,2414.3,0.5668]
[1730772663093,0.41445,2414.4,2414.3,1.4869864]
[1730772663294,0.41445,2414.4,2414.3,0.5668]
[1730772663695,4.1416,2414.4,2413.9,0.41452]
[1730772664000,3.7636,2414.3,2413.8,0.5478]
[1730772664198,40.8,2414.5,2414.1,2.58861676]
[1730772664503,41.21443,2414.5,2414.2,1.48046182]
[1730772664703,0.41445,2414.4,2414.3,0.5478]
[1730772665099,4.55605,2414.4,2414.3,0.5478]
[1730772665302,4.55605,2414.4,2414.0,0.517]
[1730772665303,0.4145,2414.1,2414.0,0.517]
[1730772665499,3.2078,2414.3,2414.0,1.43165666]
[1730772665704,3.62228,2414.3,2414.1,0.41449]
[1730772665902,3.2078,2414.3,2414.1,0.41449]
[1730772666202,0.41448,2414.2,2414.1,0.41449]
[1730772666400,3.2078,2414.3,2414.1,1.32934027]
[1730772666605,0.41449,2414.2,2414.0,0.9315]
[1730772666798,0.41448,2414.2,2414.1,1.32935984]
[1730772666999,3.2078,2414.3,2414.1,0.91485984]
[1730772667199,3.62227,2414.3,2414.1,0.41449]
[1730772667394,3.2078,2414.3,2414.2,0.41448]
[1730772668400,3.2078,2414.3,2414.0,0.517]
[1730772668598,0.41449,2414.2,2414.0,0.517]
[1730772668795,3.2078,2414.3,2414.0,0.93151]
[1730772669112,0.41449,2414.2,2414.0,0.93151]
[1730772669301,0.41449,2414.2,2414.0,0.517]
[1730772669505,3.2078,2414.3,2414.0,0.517]
[1730772670200,0.41449,2414.2,2414.0,0.9315]
[1730772670598,0.4145,2414.1,2414.0,0.517]
[1730772670798,4.1424,2414.2,2413.7,0.41455]
[1730772671003,0.41455,2413.8,2413.6,0.41457]
[1730772671206,3.62232,2414.0,2413.8,0.41454]
[1730772671399,3.2078,2414.0,2413.9,0.41453]
[1730772671600,3.62231,2414.0,2413.8,0.41454]
[1730772671901,0.41453,2413.9,2413.8,0.41454]
[1730772672295,0.41453,2413.9,2413.7,0.41456]
[1730772673099,3.2078,2414.0,2413.6,3.00318676]
[1730772673100,0.41455,2413.8,2413.6,3.00318676]
[1730772673296,0.41455,2413.8,2413.6,2.58861676]
[1730772673497,0.41455,2413.8,2413.7,0.41457]
[1730772673704,0.41455,2413.8,2413.6,2.58861676]
[1730772673910,0.41455,2413.8,2413.6,3.00319676]
[1730772674111,3.2078,2414.0,2413.6,2.58861676]
[1730772674309,44.2188,2414.5,2413.9,3.2078]
[1730772674508,44.2188,2414.5,2414.4,0.41445]
[1730772674509,3.2078,2414.5,2414.4,0.41445]
[1730772674807,3.2078,2415.0,2414.3,2.58861676]
[1730772675010,0.41441,2414.7,2414.5,0.41443]
[1730772675310,3.7784,2415.0,2414.3,2.58861676]
[1730772675507,0.41441,2414.7,2414.5,0.41443]
[1730772676508,3.7784,2415.0,2414.3,2.58861676]
[1730772676702,0.41437,2414.9,2414.7,0.41439]
[1730772676897,0.41437,2414.9,2414.8,0.5178]
[1730772677298,4.55517,2414.9,2414.8,0.5178]
[1730772677503,4.1408,2414.9,2414.3,2.58861676]
[1730772677706,0.41443,2414.5,2414.4,0.93374]
[1730772677908,3.7784,2415.0,2414.4,0.5193]
[1730772678311,0.41439,2414.8,2414.6,0.41441]
[1730772678505,3.7784,2415.0,2414.5,0.5629]
[1730772678711,0.4144,2414.7,2414.5,0.97732]
[1730772679614,0.41436,2414.9,2414.5,0.97732]
[1730772679814,0.41441,2414.7,2414.5,0.97732]
[1730772682015,40.8,2414.9,2414.5,0.5629]
[1730772682213,0.41439,2414.8,2414.6,0.4144]
[1730772682512,40.8,2414.9,2414.6,0.4144]
[1730772682711,40.8,2414.9,2414.7,0.41438]
[1730772682712,0.41438,2414.8,2414.7,0.41438]
[1730772682913,41.21437,2414.9,2414.7,0.41438]
[1730772683116,0.41439,2414.8,2414.6,3.00301676]
[1730772683614,0.41439,2414.8,2414.7,0.41439]
[1730772683811,41.21437,2414.9,2414.8,0.41438]
[1730772684020,41.21437,2414.9,2414.8,3.00299676]
[1730772684021,40.8,2414.9,2414.8,3.00299676]
[1730772684223,3.2078,2415.0,2414.9,0.41436]
[1730772684516,3.2078,2415.0,2414.9,0.5257]
[1730772684720,41.21434,2415.0,2414.9,1.46586]
[1730772684914,40.8,2415.0,2414.9,1.46586]
[1730772685221,0.41434,2415.0,2414.9,1.46586]
[1730772685425,0.41434,2415.0,2414.9,1.0515]
[1730772685610,0.41439,2414.8,2414.6,3.00302676]
[1730772685920,0.41433,2415.1,2414.9,0.41435]
[1730772686218,3.62214,2415.1,2414.9,0.41435]
[1730772686605,3.62214,2415.1,2414.9,0.94015]
[1730772687323,0.41434,2415.0,2414.9,0.5258]
[1730772687720,3.62214,2415.1,2414.9,0.94016]
[1730772688419,3.2078,2415.1,2414.9,0.94016]
[1730772688614,0.41434,2415.0,2414.9,0.94016]
[1730772689122,0.41434,2415.0,2414.9,0.5258]
[1730772689626,3.2078,2415.1,2414.9,0.94016]
[1730772689819,3.62214,2415.1,2414.9,0.94016]
[1730772690020,0.41434,2415.0,2414.9,0.5258]
[1730772691415,3.2078,2415.1,2414.9,0.94016]
[1730772691723,0.41434,2415.0,2414.9,0.5258]
[1730772692227,0.41436,2414.9,2414.8,2.58861676]
[1730772692419,0.41436,2414.9,2414.8,3.00299676]
[1730772692621,1.03586,2415.0,2414.6,3.65261676]
[1730772692812,0.41439,2414.7,2414.6,3.11431676]
[1730772693016,0.41439,2414.7,2414.6,0.94011]
[1730772693223,0.41439,2414.8,2414.6,3.52872676]
[1730772693418,0.41439,2414.8,2414.6,3.52871676]
[1730772693719,0.41437,2414.9,2414.7,0.41438]
[1730772693924,0.41437,2414.9,2414.6,3.11431676]
[1730772694219,0.41437,2414.9,2414.8,0.41438]
[1730772694619,0.41437,2414.9,2414.7,0.95878]
[1730772695625,0.41438,2414.8,2414.7,0.5444]
[1730772695925,0.41438,2414.8,2414.7,0.95879]
[1730772697327,0.41438,2414.8,2414.7,0.5444]
[1730772697526,0.41439,2414.7,2414.6,3.11431676]
[1730772698128,0.41439,2414.7,2414.6,3.52872676]
[1730772698324,0.41439,2414.7,2414.6,3.11431676]
[1730772698517,0.41439,2414.7,2414.6,3.52872676]
[1730772698822,0.41439,2414.7,2414.6,3.11431676]
[1730772699526,3.2078,2415.0,2414.6,3.11431676]
[1730772699830,0.41433,2415.1,2415.0,0.41434]
[1730772700131,0.41433,2415.1,2414.9,3.00296676]
[1730772700132,0.41434,2415.1,2414.9,3.00296676]
[1730772700328,41.3509,2415.2,2414.7,3.63051676]
[1730772700329,0.41434,2415.0,2414.7,3.63051676]
[1730772700727,0.41434,2415.0,2414.9,0.41436]
[1730772701117,0.41434,2415.0,2414.7,3.63051676]
[1730772701321,0.41434,2415.0,2414.8,0.41438]
[1730772701522,45.09360624,2415.2,2414.7,4.04489676]
[1730772701723,0.41436,2414.9,2414.8,0.41437]
[1730772702224,41.3509,2415.2,2414.8,0.41437]
[1730772702424,0.41436,2414.9,2414.8,0.41437]
[1730772703038,0.41436,2415.0,2414.8,0.41438]
[1730772703534,3.2078,2415.1,2414.8,0.41438]
[1730772703838,3.2078,2415.1,2414.7,3.10261676]
[1730772704229,0.41438,2414.8,2414.7,3.51700676]
[1730772704731,0.41438,2414.8,2414.6,0.5257]
[1730772704927,4.24364,2415.1,2414.6,0.5257]
[1730772704928,0.41439,2414.7,2414.6,0.5257]
[1730772705135,0.41439,2414.7,2414.6,0.94011]
[1730772707337,5.91472624,2415.0,2414.6,0.5257]
[1730772707534,0.41439,2414.8,2414.7,0.41439]
[1730772707836,0.41439,2414.7,2414.6,0.9401]
[1730772708137,0.41438,2414.8,2414.7,0.41439]
[1730772708537,0.41439,2414.8,2414.6,0.9401]
[1730772708733,0.41439,2414.8,2414.7,0.41439]
[1730772709034,5.91472624,2415.0,2414.6,0.5257]
[1730772709434,0.41439,2414.8,2414.7,0.41439]
[1730772710438,5.91472624,2415.0,2414.6,0.5257]
[1730772710636,5.91472624,2415.0,2414.6,0.9401]
[1730772710637,0.41439,2414.8,2414.6,0.9401]
[1730772711239,2.70692624,2415.0,2414.9,0.41436]
[1730772711435,43.50692624,2415.2,2415.1,0.41433]
[1730772711633,0.41431,2415.2,2415.1,0.41433]
[1730772712032,0.41431,2415.2,2415.1,0.5492]
[1730772712336,0.41431,2415.2,2414.7,5.79641676]
[1730772712337,2.70692624,2415.2,2414.7,5.79641676]
[1730772712532,0.5099,2415.1,2414.8,1.54386293]
[1730772712726,0.5099,2415.1,2414.8,0.96356]
[1730772712727,0.41436,2414.9,2414.8,0.96356]
[1730772713132,3.21682624,2415.1,2414.7,3.2078]
[1730772713330,0.41438,2414.8,2414.7,3.2078]
[1730772714143,0.41438,2414.8,2414.7,3.62219]
[1730772715040,2.70692624,2414.9,2414.7,3.62219]
[1730772715540,0.41438,2414.8,2414.7,3.62219]
[1730772716234,0.41438,2414.8,2414.7,3.2078]
[1730772716437,0.41438,2414.8,2414.7,3.62219]
[1730772716934,0.41438,2414.8,2414.7,4.20308264]
[1730772717243,2.70692624,2414.9,2414.7,3.2078]
[1730772717435,3.12129624,2414.9,2414.8,0.41438]
[1730772717635,2.70692624,2414.9,2414.8,0.41438]
[1730772718035,8.57203674,2415.3,2414.8,0.58103198]
[1730772718036,3.12127624,2415.0,2414.8,0.58103198]
[1730772718238,3.12127624,2415.0,2414.9,0.41436]
[1730772718433,3.12127624,2415.0,2414.8,0.5292]
[1730772718637,3.12128624,2414.9,2414.8,0.5292]
[1730772718942,2.70692624,2414.9,2414.8,0.99567345]
[1730772719137,2.70692624,2414.9,2414.8,0.41438]
[1730772719332,2.70692624,2414.9,2414.8,0.99567381]
[1730772719333,3.12128624,2414.9,2414.8,0.99567381]
[1730772720237,3.12128624,2414.9,2414.8,0.58129381]
[1730772720443,3.12128624,2414.9,2414.8,1.5125734]
[1730772720639,3.12128624,2414.9,2414.8,1.9269534]
[1730772720944,2.70692624,2415.0,2414.8,1.5125734]
[1730772721141,3.12128624,2414.9,2414.8,0.41437]
[1730772721441,3.12128624,2414.9,2414.8,1.92767783]
[1730772721846,2.70692624,2414.9,2414.8,1.92767783]
[1730772722144,3.12128624,2414.9,2414.8,1.92767783]
[1730772722535,2.70692624,2414.9,2414.8,1.51330783]
[1730772722742,0.41436,2414.9,2414.8,1.92768783]
[1730772723238,3.12128624,2414.9,2414.8,1.92768783]
[1730772723441,2.70692624,2414.9,2414.8,1.92768783]
[1730772723648,3.12128624,2415.0,2414.8,1.92768783]
[1730772723851,0.41436,2415.0,2414.9,1.51330783]
[1730772724140,3.13097627,2415.0,2414.9,1.51330783]
[1730772724346,7.27177627,2415.0,2414.9,1.51330783]
[1730772725347,0.41437,2414.9,2414.6,1.0843]
[1730772725546,0.41437,2414.9,2414.8,0.41438]
[1730772725745,2.71661627,2415.0,2414.8,1.51261251]
[1730772725952,3.13097627,2415.0,2414.9,1.92697251]
[1730772726441,2.71661627,2415.0,2414.9,1.92697251]
[1730772726654,3.2078,2415.1,2415.0,0.41434]
[1730772726844,3.2078,2415.1,2415.0,5.03486927]
[1730772727045,3.2078,2415.1,2415.0,6.19805741]
[1730772727239,3.2078,2415.1,2415.0,5.03486927]
[1730772727439,3.2078,2415.1,2415.0,6.19789252]
[1730772728051,3.62213,2415.1,2415.0,2.03191251]
[1730772728646,3.62213,2415.1,2415.0,1.51261251]
[1730772728647,10.47954627,2415.1,2415.0,1.51261251]
[1730772728842,8.9603,2415.1,2414.6,0.5193]
[1730772729049,0.41439,2414.7,2414.6,0.5193]
[1730772729546,7.8777,2414.7,2414.3,0.5041]
[1730772729747,0.41446,2414.3,2414.2,1.0489]
[1730772729942,3.2078,2414.4,2414.3,0.41446]
[1730772730449,3.2078,2414.4,2414.3,3.00307676]
[1730772732653,3.62225,2414.4,2414.3,2.58861676]
[1730772733253,0.41445,2414.4,2414.3,2.58861676]
[1730772733456,0.41446,2414.3,2414.2,0.5305]
[1730772735851,2.7165314,2414.5,2414.0,4.2441]
[1730772736147,0.4145,2414.1,2414.0,4.2441]
[1730772737455,0.4145,2414.1,2414.0,1.0363]
[1730772738752,0.41453,2414.0,2413.8,3.52785676]
[1730772739543,0.5137,2414.2,2413.8,3.11331676]
[1730772739744,3.2078,2414.3,2414.0,2.58861676]
[1730772740057,3.62222,2414.6,2414.4,0.41444]
[1730772740256,3.62222,2414.6,2414.5,1.5701]
[1730772744655,3.62222,2414.6,2414.5,0.5227]
[1730772744853,3.62222,2414.6,2414.1,1.0004]
[1730772744854,7.3494,2414.6,2414.1,1.0004]
[1730772745054,0.41448,2414.2,2414.1,1.0004]
[1730772745959,3.2078,2414.3,2414.1,1.41489]
[1730772745960,3.62227,2414.3,2414.1,1.41489]
[1730772746156,3.62227,2414.3,2414.1,1.0004]
[1730772746356,3.62227,2414.3,2414.2,0.41448]
[1730772747165,3.62227,2414.3,2414.1,1.41489]
[1730772747660,0.41448,2414.2,2414.1,1.4149]
[1730772748062,0.41448,2414.2,2414.1,1.0004]
[1730772748759,0.41448,2414.2,2414.1,1.4149]
[1730772748964,0.41448,2414.2,2414.1,1.0004]
[1730772750159,0.41448,2414.2,2414.1,1.4149]
[1730772750562,3.62228,2414.3,2414.1,1.4149]
[1730772750864,0.41448,2414.2,2414.1,1.0004]
[1730772755174,3.2078,2414.3,2413.9,0.4809]
[1730772755465,0.41451,2414.0,2413.9,0.9849]
[1730772755666,0.41455,2413.8,2413.7,0.982]
[1730772758670,0.4146,2413.5,2413.4,0.4747]
[1730772758868,3.2078,2413.7,2413.4,0.9734]
[1730772759072,0.41459,2413.6,2413.4,0.9734]
[1730772759373,41.21459,2413.6,2413.4,1.38801]
[1730772760369,3.2078,2413.7,2413.6,0.41458]
[1730772760967,3.62237,2413.7,2413.6,0.41458]
[1730772761271,3.2078,2413.7,2413.6,0.41458]
[1730772761462,41.71844,2413.9,2413.7,0.41456]
[1730772761664,41.71844,2413.9,2413.8,0.4853]
[1730772762168,4.55694,2413.9,2413.8,0.4853]
[1730772762369,0.41454,2413.9,2413.8,0.4853]
[1730772763370,3.2078,2413.9,2413.4,0.9734]
[1730772763578,0.41459,2413.6,2413.5,0.4146]
[1730772764578,0.41459,2413.6,2413.4,1.4611]
[1730772764875,0.41459,2413.6,2413.4,1.87571]
[1730772765275,0.4146,2413.5,2413.4,1.4611]
[1730772766182,0.41466,2413.2,2413.0,5.08047]
[1730772766373,0.41466,2413.2,2413.1,0.9795]
[1730772769074,0.41466,2413.2,2413.1,1.39417]
[1730772769277,0.41466,2413.2,2413.1,0.9795]
[1730772769480,0.41466,2413.2,2413.1,1.39417]
[1730772774277,0.41465,2413.2,2413.1,1.39416]
[1730772776383,0.41465,2413.2,2413.1,0.9795]
[1730772777180,0.41465,2413.2,2413.1,0.4822]
[1730772777479,0.94705,2413.2,2413.1,0.4822]
[1730772778279,4.6764,2413.2,2412.9,0.4852]
[1730772778482,3.62249,2413.0,2412.9,0.4852]
[1730772779087,3.62249,2413.0,2412.9,0.8999]
[1730772779487,3.2078,2413.0,2412.9,0.8999]
[1730772780375,0.41469,2413.0,2412.9,0.4852]
[1730772780579,0.4147,2412.9,2412.8,1.39922]
[1730772780790,0.9713,2413.2,2412.8,1.39922]
[1730772780791,0.4147,2413.0,2412.8,1.39922]
[1730772780980,41.2147,2412.9,2412.8,0.9845]
[1730772781181,40.8,2412.9,2412.8,1.39922]
[1730772781585,40.8,2412.9,2412.8,1.97385021]
[1730772783096,3.2078,2413.3,2412.8,1.55913021]
[1730772783295,3.2078,2413.3,2412.8,0.9845]
[1730772783488,3.62244,2413.3,2413.1,0.41465]
[1730772783695,3.62244,2413.3,2413.2,0.9974]
[1730772783897,7.76644,2413.3,2413.2,0.9974]
[1730772784589,3.62244,2413.3,2413.2,0.9974]
[1730772784786,3.62244,2413.3,2413.2,1.41205]
[1730772785088,3.62244,2413.3,2413.2,0.9974]
[1730772786192,3.62243,2413.3,2413.2,1.41205]
[1730772786491,3.62243,2413.3,2413.2,0.9974]
[1730772787087,3.2078,2413.3,2413.2,1.41205]
[1730772787796,3.62243,2413.3,2413.2,0.9974]
[1730772788791,0.41463,2413.3,2413.2,0.9974]
[1730772789096,3.62243,2413.4,2413.2,1.41204]
[1730772789285,3.62243,2413.4,2413.3,0.4764]
[1730772789689,44.42243,2413.4,2413.3,0.4764]
[1730772793400,44.0078,2413.4,2413.3,0.4764]
[1730772793596,3.2078,2413.8,2413.3,4.6204]
[1730772793902,0.41461,2413.5,2413.4,0.41461]
[1730772794291,0.41461,2413.5,2413.3,0.4764]
[1730772794491,0.41461,2413.5,2413.4,0.41462]
[1730772794697,0.5067,2413.6,2413.3,0.89103]
[1730772794886,0.5067,2413.6,2413.3,0.4764]
[1730772795091,0.4146,2413.5,2413.4,0.41461]
[1730772796093,0.5067,2413.6,2413.3,0.4764]
[1730772796295,0.41462,2413.4,2413.3,0.89103]
[1730772796596,0.41461,2413.5,2413.3,0.89103]
[1730772797203,0.41462,2413.4,2413.3,0.89103]
[1730772797504,0.41462,2413.4,2413.3,1.46688987]
[1730772797698,0.41461,2413.5,2413.3,1.46688987]
[1730772797898,0.41462,2413.4,2413.3,0.89103]
[1730772798099,0.41462,2413.4,2413.3,1.46699013]
[1730772798492,0.41462,2413.4,2413.3,0.89103]
[1730772798701,0.41462,2413.4,2413.3,1.46718271]
[1730772799197,0.5067,2413.6,2413.4,0.41462]
[1730772799198,0.41461,2413.5,2413.4,0.41462]
[1730772799393,0.41461,2413.5,2413.4,0.57615271]
[1730772799394,0.4146,2413.5,2413.4,0.57615271]
[1730772799597,0.5067,2413.6,2413.3,0.4764]
[1730772800006,0.41462,2413.4,2413.3,0.4764]
[1730772800204,0.41462,2413.4,2413.3,1.05278486]
[1730772801901,0.41462,2413.4,2413.3,1.46741486]
[1730772802094,3.2078,2413.5,2413.4,0.41462]
[1730772802298,3.2078,2413.5,2413.4,0.99152131]
[1730772803603,3.7347,2414.0,2413.4,5.64251467]
[1730772803805,4.14922,2414.0,2413.8,0.41453]
[1730772804013,4.14922,2414.0,2413.9,1.97913]
[1730772804216,7.79880687,2414.0,2413.9,1.5646]
[1730772804422,5.08381,2414.0,2413.9,1.97913]
[1730772804617,45.88381,2414.0,2413.9,1.5646]
[1730772806422,45.88381,2414.0,2413.9,0.5304]
[1730772807123,49.09161,2414.0,2413.9,0.5304]
[1730772807325,0.41455,2413.8,2413.7,0.5114]
[1730772807522,0.41455,2413.8,2413.7,1.0877418]
[1730772809532,0.41455,2413.8,2413.7,0.5763418]
[1730772809826,5.92243622,2413.9,2413.6,0.5202]
[1730772810132,0.41455,2413.8,2413.7,0.57642344]
[1730772810326,0.41457,2413.7,2413.6,0.5202]
[1730772810625,50.2458967,2413.7,2412.9,3.839549]
[1730772810827,0.41466,2413.2,2413.0,3.5063207]
[1730772811017,5.92290348,2413.5,2413.0,1.592]
[1730772811018,0.41467,2413.1,2413.0,1.592]
[1730772811326,0.41467,2413.1,2413.0,3.09208973]
[1730772811530,0.41467,2413.1,2413.0,2.16895759]
[1730772811824,9.44716396,2413.1,2412.5,3.2078]
[1730772812028,0.41476,2412.6,2412.5,0.5349]
[1730772812226,0.41483,2412.2,2411.8,1.6928648]
[1730772812427,5.79586048,2412.6,2412.0,0.41485]
[1730772812428,40.8,2412.1,2412.0,0.41485]
[1730772812632,40.8,2412.1,2412.0,0.99200247]
[1730772813028,40.8,2412.1,2412.0,0.57715247]
[1730772813232,40.8,2412.1,2411.8,1.0683]
[1730772813423,0.41483,2412.2,2412.0,0.57721045]
[1730772813630,0.41483,2412.2,2411.9,1.33840681]
[1730772813828,41.21483,2412.2,2411.9,1.33840681]
[1730772814323,40.8,2412.2,2411.9,0.92353681]
[1730772814733,41.21483,2412.2,2411.9,1.33840681]
[1730772816223,41.21483,2412.2,2412.0,0.41486]
[1730772816943,41.21483,2412.2,2411.9,1.33840681]
[1730772817230,40.8,2412.2,2411.9,0.92353681]
[1730772817538,0.41486,2412.0,2411.9,0.92353681]
[1730772818037,40.8,2412.2,2411.8,1.0683]
[1730772818530,0.41488,2412.0,2411.8,1.0683]
[1730772819340,44.0078,2412.2,2411.8,0.5349]
[1730772819540,0.41488,2411.9,2411.8,0.5349]
[1730772819940,44.0078,2412.2,2411.8,0.5349]
[1730772819941,0.41487,2412.0,2411.8,0.5349]
[1730772820142,0.41484,2412.1,2411.9,0.41486]
[1730772820340,0.41486,2412.0,2411.8,0.5349]
[1730772820538,0.41486,2412.1,2411.8,0.94979]
[1730772821237,0.41486,2412.1,2411.8,1.46429]
[1730772821747,44.0078,2412.2,2411.8,1.46429]
[1730772821938,0.41485,2412.1,2411.8,1.46429]
[1730772822340,44.0078,2412.2,2411.8,1.46429]
[1730772822546,0.41486,2412.0,2411.8,1.46429]
[1730772822938,0.41486,2412.0,2411.8,1.0494]
[1730772823645,0.41485,2412.1,2411.9,0.41488]
[1730772823845,0.41485,2412.1,2411.8,1.46428]
[1730772824047,44.0078,2412.2,2411.8,1.46428]
[1730772824239,0.41487,2412.0,2411.8,1.46428]
[1730772824439,0.41487,2412.0,2411.8,1.0494]
[1730772824841,44.0078,2412.2,2411.8,1.0494]
[1730772825038,3.62262,2412.2,2412.0,0.41485]
[1730772825238,3.2078,2412.2,2411.8,1.0494]
[1730772825442,0.41484,2412.1,2411.9,0.41487]
[1730772825941,3.62263,2412.2,2411.9,0.41487]
[1730772826643,0.41484,2412.2,2411.9,0.41487]
[1730772827945,0.41484,2412.2,2411.8,1.0494]
[1730772828141,0.41484,2412.2,2412.0,0.41485]
[1730772831852,3.2078,2412.3,2411.9,0.41487]
[1730772831853,0.41485,2412.1,2411.9,0.41487]
[1730772832351,0.41484,2412.2,2412.0,0.41486]
[1730772833150,3.2078,2412.3,2411.8,1.0494]
[1730772833351,0.41486,2412.0,2411.9,0.41487]
[1730772833554,0.41488,2411.9,2411.8,1.0494]
[1730772835450,0.41489,2411.8,2411.7,3.2078]
[1730772835647,0.5299,2412.1,2411.7,3.6227]
[1730772835847,0.5299,2412.1,2411.8,0.5261]
[1730772836256,0.41488,2411.9,2411.8,0.5261]
[1730772836759,0.5299,2412.1,2411.8,1.0395]
[1730772836955,0.41487,2412.0,2411.8,1.45438]
[1730772837848,0.41488,2411.9,2411.8,1.0395]
[1730772838050,5.79586048,2412.3,2411.8,1.45438]